Workbook

Sheet 目录
A1: 目录
A2: 附表3-1 | B2: 部门预算收支总表
A3: 附表3-2 | B3: 部门预算收入总表
A4: 附表3-3 | B4: 部门预算支出总表
A5: 附表3-4 | B5: 部门预算财政拨款收支总表
A6: 附表3-5 | B6: 部门预算一般公共预算财政拨款支出表
A7: 附表3-6 | B7: 部门预算一般公共预算财政拨款基本支出表
A8: 附表3-7 | B8: 部门预算政府性基金预算财政拨款支出表
A9: 附表3-8 | B9: 部门预算国有资本经营预算财政拨款支出表
A10: 附表3-9 | B10: 部门预算财政拨款“三公”经费支出表

Sheet 附表3-1
A1: 附表3-1
A2: 部门预算收支总表
D3: 公开01表
D4: 单位：万元
A5: 收入 | C5: 支出
A6: 项 目 | B6: 预算数 | C6: 项 目 | D6: 预算数
A7: 一、财政拨款收入 | B7: =876.08+53.58 -> 929.66 | C7: 一、一般公共服务支出
A8: 二、上级补助收入 | C8: 二、外交支出
A9: 三、事业收入 | C9: 三、国防支出
A10: 四、经营收入 | C10: 四、公共安全支出 | D10: =835.19+47.6 -> 882.79
A11: 五、附属单位上缴收入 | C11: 五、教育支出
A12: 六、其他收入 | C12: 六、科学技术支出
C13: 七、文化体育与传媒支出
C14: 八、社会保障和就业支出
C15: 九、医疗卫生与计划生育支出 | D15: =23.03+3.37 -> 26.40
C16: 十、节能环保支出
C17: 十一、城乡社区支出
C18: 十二、农林水支出
C19: 十三、交通运输支出
C20: 十四、资源勘探信息等支出
C21: 十五、商业服务业等支出
C22: 十六、金融支出
C23: 十七、援助其他地区支出
C24: 十八、国土海洋气象等支出
C25: 十九、住房保障支出 | D25: =17.86+2.61 -> 20.47
C26: 二十、粮油物资储备支出
C27: 二十一、国债还本付息支出
C28: 二十二、其他支出
A29: 本年收入合计 | B29: =B7 -> 929.66 | C29: 本年支出合计 | D29: =SUM(D10:D28) -> 929.66
A30: 用事业基金弥补收支差额 | C30: 结余分配
A31: 年初结转和结余 | C31: 年末结转和结余
A32: 合计 | B32: =B29 -> 929.66 | C32: 合计 | D32: =D29 -> 929.66

Sheet 附表3-2
A1: 附表3-2
A2: 部门预算收入总表
I3: 公开02表
I4: 单位：万元
A5: 科目 | C5: 本年收入合计 | D5: 财政拨款收入 | E5: 上级补助收入 | F5: 事业收入 | G5: 经营收入 | H5: 附属单位上缴收入 | I5: 其他收入
A6: 功能分类科目编码 | B6: 科目名称
A8: 合计 | C8: =D8 -> 929.66 | D8: =SUM(D9:D13) -> 929.66
A9: 2040502 | B9: 一般行政管理事务 | C9: =D9 -> 721.94 | D9: 721.94
A10: 2040506 | B10: “两庭”建设 | C10: 47.60 | D10: 47.60
A11: 2101101 | B11: 行政单位医疗 | C11: 26.40 | D11: =23.03+3.37 -> 26.40
A12: 2210201 | B12: 住房公积金 | C12: 20.47 | D12: =17.86+2.61 -> 20.47
A13: 2040599 | B13: 其他法院支出 | C13: 113.25 | D13: 113.25

Sheet 附表3-3
A1: 附表3-3
A2: 部门预算支出总表
H3: 公开03表
H4: 单位：万元
A5: 科目 | C5: 本年支出合计 | D5: 基本支出 | E5: 项目支出 | F5: 上缴上级支出 | G5: 经营支出 | H5: 对附属单位补助支出
A6: 功能分类科目编码 | B6: 科目名称
A8: 合计 | C8: =D8+E8 -> 929.66 | D8: =SUM(D9:D13) -> 671.34 | E8: =SUM(E9:E13) -> 258.32
A9: 2040502 | B9: 一般行政管理事务 | C9: =D9+E9 -> 721.94 | D9: 576.87 | E9: 145.07
A10: 2040506 | B10: “两庭”建设 | C10: 47.60 | D10: 47.60
A11: 2101101 | B11: 行政单位医疗 | C11: 26.40 | D11: =23.03+3.37 -> 26.40
A12: 2210201 | B12: 住房公积金 | C12: 20.47 | D12: =17.86+2.61 -> 20.47
A13: 2040599 | B13: 其他法院支出 | C13: 113.25 | E13: 113.25

Sheet 附表3-4
A1: 附表3-4
A2: 部门预算财政拨款收支总表
G3: 公开04表
G4: 单位：万元
A5: 收入 | C5: 支出
A6: 项 目 | B6: 金额 | C6: 项 目 | D6: 合计 | E6: 一般公共预算财政拨款 | F6: 政府性基金预算财政拨款 | G6: 国有资本经营预算财政拨款
A7: 一、一般公共预算财政拨款 | B7: =876.08+53.58 -> 929.66 | C7: 一、一般公共服务支出
A8: 二、政府性基金预算财政拨款 | C8: 二、外交支出
A9: 三、国有资本经营预算财政拨款 | C9: 三、国防支出
C10: 四、公共安全支出 | D10: =835.19+47.6 -> 882.79 | E10: =835.19+47.6 -> 882.79
C11: 五、教育支出
C12: 六、科学技术支出
C13: 七、文化体育与传媒支出
C14: 八、社会保障和就业支出
C15: 九、医疗卫生与计划生育支出 | D15: =23.03+3.37 -> 26.40 | E15: =23.03+3.37 -> 26.40
C16: 十、节能环保支出
C17: 十一、城乡社区支出
C18: 十二、农林水支出
C19: 十三、交通运输支出
C20: 十四、资源勘探信息等支出
C21: 十五、商业服务业等支出
C22: 十六、金融支出
C23: 十七、援助其他地区支出
C24: 十八、国土海洋气象等支出
C25: 十九、住房保障支出 | D25: =17.86+2.61 -> 20.47 | E25: =17.86+2.61 -> 20.47
C26: 二十、粮油物资储备支出
C27: 二十一、国债还本付息支出
C28: 二十二、其他支出
A29: 本年收入合计 | B29: =B7 -> 929.66 | C29: 本年支出合计 | D29: =SUM(D10:D25) -> 929.66 | E29: =SUM(E10:E25) -> 929.66
A30: 年初财政拨款结转和结余 | C30: 年末结转和结余
A31: 合计 | B31: =B29 -> 929.66 | C31: 合计 | D31: =D29 -> 929.66 | E31: =E29 -> 929.66

Sheet 附表3-5
A1: 附表3-5
A2: 部门预算一般公共预算财政拨款支出表
E3: 公开05表
E4: 单位：万元
A5: 科目 | C5: 合计 | D5: 基本支出 | E5: 项目支出
A6: 功能分类科目编码 | B6: 科目名称
A9: 合计 | C9: =D9+E9 -> 929.66 | D9: =SUM(D10:D14) -> 671.34 | E9: =SUM(E10:E14) -> 258.32
A10: 2040502 | B10: 一般行政管理事务 | C10: =D10+E10 -> 721.94 | D10: 576.87 | E10: 145.07
A11: 2040506 | B11: “两庭”建设 | C11: 47.60 | D11: 47.60
A12: 2101101 | B12: 行政单位医疗 | C12: 26.40 | D12: =23.03+3.37 -> 26.40
A13: 2210201 | B13: 住房公积金 | C13: 20.47 | D13: =17.86+2.61 -> 20.47
A14: 2040599 | B14: 其他法院支出 | C14: 113.25 | E14: 113.25

Sheet 附表3-6
A1: 附表3-6
A2: 部门预算一般公共预算财政拨款基本支出表
E3: 公开06表
E4: 单位：万元
A5: 科目 | C5: 基本支出
A6: 经济分类科目编码 | B6: 科目名称 | C6: 合计 | D6: 人员经费 | E6: 公用经费
A7: 合计 | C7: =D7+E7 -> 671.34 | D7: =D8+D15 -> 508.31 | E7: =SUM(E19:E29) -> 163.03
B8: 一、工资福利支出 | C8: 425.3 | D8: =SUM(D9:D14) -> 473.59
A9: 30101 | B9: 1、基本工资 | C9: 63.74 | D9: =63.74+9.23 -> 72.97
A10: 30102 | B10: 2、津贴补贴 | C10: 110.31 | D10: =110.31+16.47 -> 126.78
A11: 30103 | B11: 3、奖金 | C11: 5.1 | D11: =5.1+0.77 -> 5.87
A12: 30104 | B12: 4、其他社会保障缴费 | C12: 64.91 | D12: =64.91+9.46 -> 74.37
A13: 30107 | B13: 6、绩效工资 | C13: 43.4 | D13: =43.4+8 -> 51.4
A14: 30199 | B14: 7、其他工资福利支出 | C14: 137.84 | D14: =137.84+4.36 -> 142.2
B15: 二、对个人和家庭的补助 | C15: 30.29 | D15: =SUM(D16:D18) -> 34.72
A16: 30309 | B16: 8、奖励金 | C16: 0.02 | D16: 0.02
A17: 30311 | B17: 9、住房公积金 | C17: 17.86 | D17: =17.86+2.61 -> 20.47
A18: 30399 | B18: 11、其他对个人和家庭的补助支出 | C18: 12.41 | D18: =12.41+1.82 -> 14.23
A19: 30201 | B19: （1）办公费 | C19: 3 | E19: =3+0.45 -> 3.45
A20: 30205 | B20: （2）水费 | C20: 20 | E20: 20
A21: 30206 | B21: （3）电费 | C21: 60 | E21: 60
A22: 30207 | B22: （4）邮电费 | C22: 6.4 | E22: 6.4
A23: 30208 | B23: （5）办公取暖费 | C23: 34.29 | E23: 34.29
A24: 30211 | B24: （7）差旅费 | C24: 0.6 | E24: 0.6
A25: 30231 | B25: （12）公务用车运行维护费 | C25: 34.5 | E25: 34.5
A26: 30299 | B26: （24）其他 | C26: 0.2 | E26: =0.2+0.03 -> 0.23
A27: 30216 | B27: （1）培训费 | C27: 0.05 | E27: 0.05
A28: 30217 | B28: （2）公务接待费 | C28: 0.5 | E28: 0.5
A29: 30228 | B29: （3）工会经费 | C29: 2.63 | E29: =2.63+0.38 -> 3.01

Sheet 附表3-7
A1: 附表3-7
A2: 部门预算政府性基金预算财政拨款支出表
F4: 单位：万元
A5: 科目 | D5: 合计 | E5: 基本支出 | F5: 项目支出
A6: 功能分类科目编码 | C6: 科目名称
A9: 合计
A16: 此表无数据

Sheet 附表3-8
A1: 附表3-8
A2: 部门预算国有资本经营预算财政拨款支出表
F4: 单位：万元
A5: 科目 | D5: 合计 | E5: 基本支出 | F5: 项目支出
A6: 功能分类科目编码 | C6: 科目名称
A9: 合计
A16: 此表无数据

Sheet 附表3-9
A1: 附表3-9
A2: 部门预算财政拨款“三公”经费支出表
E3: 公开07表
E4: 单位：万元
A5: 项目 | B5: 资金来源
B6: 合计 | C6: 一般公共预算财政拨款 | D6: 政府性基金财政拨款 | E6: 国有资本经营预算财政拨款
A7: 合计 | B7: 35 | C7: 35
A8: 一、因公出国（境）费
A9: 二、公务用车购置及运行费 | B9: 34.5 | C9: 34.5
A10: 其中：公务用车购置费
A11: 公务用车运行费 | B11: 34.5 | C11: 34.5
A12: 三、公务接待费 | B12: 0.5 | C12: 0.5
